bitfinex/quotes_SOLUSD_20240612
["timestamp","ask_amount","ask_price","bid_price","bid_amount"]
[1718178426534,8.32,151.26,151.24,2.4463]
[1718178426921,2.4458,151.28,151.24,2.4463]
[1718178427236,8.32,151.26,151.24,2.4463]
[1718178428831,8.32,151.26,151.23,2.4465]
[1718178430153,0.68,151.3,151.22,7.3402]
[1718178430341,2.4454,151.31,151.26,2.4461]
[1718178430519,2.4454,151.31,151.24,4.8928]
[1718178430520,8.32,151.29,151.27,2.4459]
[1718178431545,20.8123,151.33,151.27,2.4458]
[1718178431838,8.32,151.3,151.27,2.4458]
[1718178432037,2.4452,151.32,151.28,2.4457]
[1718178432246,8.32,151.31,151.28,2.4457]
[1718178432824,8.32,151.3,151.27,2.4458]
[1718178433026,10.7654,151.3,151.26,2.4461]
[1718178433532,8.32,151.29,151.26,2.4461]
[1718178434839,10.7657,151.29,151.25,2.4462]
[1718178435045,8.32,151.27,151.24,2.4463]
[1718178435537,8.32,151.26,151.24,2.4463]
[1718178436522,8.32,151.26,151.25,2.4462]
[1718178436918,8.32,151.26,151.21,13.4293]
[1718178437258,8.32,151.25,151.23,2.4465]
[1718178438445,0.17,151.29,151.21,15.6606]
[1718178438647,8.32,151.26,151.25,2.4462]
[1718178438952,8.32,151.26,151.24,2.4463]
[1718178439140,2.4458,151.28,151.24,2.4463]
[1718178439326,8.32,151.26,151.24,2.4463]
[1718178439739,8.32,151.26,151.23,2.4465]
[1718178440945,8.32,151.26,151.2,40.8846]
[1718178441150,8.32,151.26,151.24,2.4464]
[1718178442851,8.32,151.25,151.24,2.4464]
[1718178443757,8.32,151.28,151.24,2.4464]
[1718178443758,2.4458,151.28,151.24,2.4464]
[1718178443940,8.32,151.25,151.24,2.4464]
[1718178445553,8.32,151.26,151.24,2.4464]
[1718178445752,8.32,151.25,151.24,2.4464]
[1718178446255,0.34,151.27,151.24,2.4464]
[1718178446437,0.17,151.27,151.24,2.4464]
[1718178446635,8.32,151.26,151.24,2.4464]
[1718178447360,8.32,151.25,151.24,2.4464]
[1718178447575,8.32,151.25,151.2,27.6704]
[1718178448356,8.32,151.25,151.23,2.4465]
[1718178454861,2.446,151.27,151.23,2.4465]
[1718178455073,8.32,151.25,151.24,2.4464]
[1718178457066,8.32,151.25,151.23,2.4465]
[1718178461564,8.32,151.26,151.23,2.4465]
[1718178464583,10.7661,151.26,151.23,2.4465]
[1718178464766,23.5124,151.25,151.17,17.1323]
[1718178465082,10.7666,151.23,151.19,2.4471]
[1718178465283,8.32,151.22,151.19,2.4471]
[1718178465582,8.32,151.22,151.2,2.447]
[1718178465990,8.32,151.22,151.21,2.4469]
[1718178466283,8.32,151.23,151.21,2.4469]
[1718178470264,17.6387,151.25,151.21,2.4469]
[1718178470594,8.32,151.23,151.21,2.4469]
[1718178473593,17.6387,151.25,151.22,2.4467]
[1718178473797,8.32,151.23,151.21,2.4468]
[1718178474106,8.32,151.22,151.21,2.4468]
[1718178477609,8.32,151.22,151.2,2.447]
[1718178478594,8.32,151.21,151.2,2.447]
[1718178478801,8.32,151.21,151.19,2.4471]
[1718178479101,8.32,151.21,151.2,2.447]
[1718178480710,2.4465,151.24,151.2,2.447]
[1718178480898,8.32,151.21,151.2,2.447]
[1718178484213,8.32,151.21,151.19,2.4471]
[1718178485393,2.4464,151.24,151.2,2.4469]
[1718178485596,8.32,151.22,151.2,2.4469]
[1718178487609,8.32,151.22,151.19,2.4471]
[1718178494519,10.7667,151.22,151.19,2.4471]
[1718178496313,8.32,151.21,151.19,2.4471]
[1718178496816,8.32,151.21,151.15,14.6871]
[1718178497018,8.32,151.2,151.17,2.4474]
[1718178497896,8.32,151.2,151.18,2.4474]
[1718178499627,8.32,151.2,151.19,2.4472]
[1718178500208,8.32,151.21,151.19,2.4472]
[1718178500715,0.17,151.19,151.13,0.8526358]
[1718178500927,8.32,151.14,151.13,0.8526358]
[1718178503524,8.32,151.14,151.13,3.3008358]
[1718178504329,8.32,151.14,151.13,0.8526358]
[1718178505523,0.17,151.15,151.13,0.8526358]
[1718178505721,8.32,151.14,151.13,0.8526358]
[1718178508047,2.6176,151.17,151.13,0.8526358]
[1718178508225,8.32,151.16,151.13,3.3007358]
[1718178508736,8.32,151.16,151.14,2.448]
[1718178510023,8.32,151.16,151.13,3.3007358]
[1718178510224,8.32,151.18,151.16,2.4477]
[1718178510458,8.32,151.19,151.16,2.4477]
[1718178511425,8.32,151.19,151.17,2.4475]
[1718178511635,8.32,151.2,151.18,2.4474]
[1718178511837,8.32,151.2,151.17,2.4474]
[1718178512049,8.32,151.19,151.17,2.4474]
[1718178513325,8.32,151.19,151.15,2.4478]
[1718178513537,8.32,151.17,151.15,2.4478]
[1718178514442,8.32,151.17,151.14,2.4479]
[1718178514627,8.32,151.17,151.13,0.8526358]
[1718178514828,8.32,151.17,151.14,2.448]
[1718178515545,8.32,151.17,151.15,2.4478]
[1718178519327,2.4472,151.19,151.15,2.4478]
[1718178519554,22.0211,151.22,151.16,2.4477]
[1718178519555,8.32,151.17,151.16,2.4477]
[1718178521254,2.447,151.21,151.17,2.4475]
[1718178521457,8.32,151.19,151.17,2.4475]
[1718178521755,2.447,151.21,151.17,2.4475]
[1718178521965,8.32,151.19,151.17,2.4475]
[1718178522452,10.7672,151.19,151.16,2.4477]
[1718178522752,8.32,151.18,151.16,2.4477]
[1718178523250,8.32,151.19,151.16,2.4477]
[1718178524559,8.32,151.18,151.15,2.4478]
[1718178525053,10.7674,151.18,151.15,2.4478]
[1718178525353,8.32,151.17,151.14,2.448]
[1718178526357,8.32,151.17,151.15,2.4478]
[1718178528550,8.32,151.16,151.14,2.4479]
[1718178530335,10.7679,151.15,151.13,0.8526358]
[1718178530659,2.6176,151.17,151.13,3.3007358]
[1718178530865,8.32,151.14,151.13,0.8526358]
[1718178534935,11.108,151.14,151.13,0.8526358]
[1718178535130,11.448,151.14,151.13,0.8526358]
[1718178535951,9.0,151.14,151.13,0.8526358]
[1718178536265,11.448,151.14,151.13,0.8526358]
[1718178539966,9.0,151.14,151.13,0.8526358]
[1718178540259,2.4478,151.16,151.13,0.8526358]
[1718178540464,8.32,151.14,151.13,0.8526358]
[1718178540682,8.32,151.14,151.13,3.3008358]
[1718178541181,8.32,151.14,151.13,0.8526358]
[1718178541343,10.768,151.14,151.13,0.8526358]
[1718178541541,11.278,151.14,151.13,0.8526358]
[1718178541767,11.448,151.14,151.13,0.8526358]
[1718178544563,8.32,151.14,151.13,0.8526358]
[1718178544778,11.448,151.14,151.13,0.8526358]
[1718178545466,11.108,151.14,151.13,0.8526358]
[1718178545673,2.6178,151.16,151.13,0.8526358]
[1718178545851,8.32,151.14,151.13,0.8526358]
[1718178546570,2.4479,151.15,151.13,0.8526358]
[1718178546761,8.32,151.14,151.13,0.8526358]
[1718178549572,10.768,151.14,151.13,0.8526358]
[1718178550059,11.278,151.14,151.13,0.8526358]
[1718178550270,23.6882,151.14,151.13,0.8526358]
[1718178550570,7.8541,151.14,151.13,0.8526358]
[1718178550769,11.448,151.14,151.13,0.8526358]
[1718178552070,10.768,151.14,151.13,0.8526358]
[1718178552455,33.1404,151.14,151.13,0.8526358]
[1718178552668,33.4804,151.14,151.13,0.8526358]
[1718178552852,2.448,151.14,151.13,0.8526358]
[1718178553355,10.768,151.14,151.13,0.8526358]
[1718178554974,2.448,151.14,151.13,0.8526358]
[1718178555153,10.768,151.14,151.13,0.8526358]
[1718178556353,2.448,151.14,151.13,0.8526358]
[1718178556549,19.84,151.19,151.13,0.8526358]
[1718178556550,15.8833,151.22,151.14,2.4479]
[1718178556776,10.7674,151.18,151.14,2.4479]
[1718178556973,33.28,151.2,151.13,3.3007358]
[1718178557176,2.4477,151.16,151.13,0.8526358]
[1718178557562,2.4477,151.16,151.13,3.3008358]
[1718178558483,2.4476,151.17,151.13,3.3008358]
[1718178560578,33.28,151.2,151.16,2.4476]
[1718178560805,8.32,151.18,151.16,2.4476]
[1718178561867,2.4471,151.2,151.16,2.4476]
[1718178562185,8.32,151.18,151.16,2.4476]
[1718178562680,8.32,151.18,151.13,5.7489358]
[1718178562681,8.32,151.18,151.15,2.4478]
[1718178563072,8.32,151.16,151.13,3.3007358]
[1718178563384,8.32,151.2,151.13,0.8526358]
[1718178563573,10.768,151.15,151.13,0.8526358]
[1718178563963,0.51,151.19,151.13,0.8526358]
[1718178564166,8.32,151.16,151.15,2.4478]
[1718178564380,8.32,151.17,151.15,2.4478]
[1718178566490,8.32,151.17,151.14,2.4479]
[1718178566784,10.7676,151.17,151.13,3.3007358]
[1718178566972,10.7679,151.15,151.13,0.8526358]
[1718178567347,8.32,151.16,151.13,0.8526358]
[1718178567470,8.32,151.16,151.13,3.3007358]
[1718178568489,8.32,151.16,151.14,2.448]
[1718178570278,8.32,151.17,151.14,2.448]
[1718178572190,10.7675,151.17,151.14,2.448]
[1718178572890,14.6798,151.23,151.17,2.4475]
[1718178573090,8.32,151.2,151.17,2.4475]
[1718178573793,10.767,151.21,151.17,2.4475]
[1718178574818,2.447,151.21,151.18,2.4473]
[1718178574984,10.767,151.21,151.18,2.4473]
[1718178575592,8.32,151.21,151.19,2.4471]
[1718178575893,8.32,151.22,151.19,2.4471]
[1718178576686,10.7667,151.22,151.18,2.4473]
[1718178577299,8.32,151.21,151.18,2.4473]
[1718178580684,10.7669,151.21,151.18,2.4473]
[1718178580902,10.7669,151.21,151.17,2.4474]
[1718178581097,17.124,151.25,151.16,15.4776]
[1718178581098,0.17,151.22,151.16,15.4776]
[1718178581290,10.7673,151.19,151.16,15.4776]
[1718178581584,10.7673,151.19,151.15,2.4478]
[1718178581790,8.32,151.18,151.15,2.4478]
[1718178583295,8.32,151.18,151.16,2.4477]
[1718178584987,8.32,151.18,151.17,2.4475]
[1718178585506,8.32,151.19,151.16,2.4476]
[1718178585807,8.32,151.18,151.15,2.4478]
[1718178585997,8.32,151.17,151.15,2.4478]
[1718178586202,8.32,151.18,151.15,2.4478]
[1718178586510,8.32,151.17,151.16,2.4477]
[1718178590014,8.32,151.18,151.17,2.4475]
[1718178592219,8.32,151.19,151.17,2.4475]
[1718178594910,8.32,151.19,151.16,2.4476]
[1718178595988,10.7672,151.19,151.16,2.4476]
[1718178596817,8.32,151.18,151.16,2.4476]
[1718178598806,8.32,151.18,151.15,2.4478]
[1718178600624,8.32,151.18,151.13,15.5411358]
[1718178600625,8.32,151.17,151.14,2.4479]
[1718178600803,8.32,151.17,151.15,2.4478]
[1718178601407,8.32,151.18,151.16,2.4477]
[1718178602101,8.32,151.2,151.16,12.2384]
[1718178602302,32.0719,151.25,151.19,2.4471]
[1718178602303,2.4466,151.23,151.19,2.4471]
[1718178602503,8.32,151.21,151.19,2.4471]
[1718178602716,8.32,151.2,151.18,2.4473]
[1718178604323,0.17,151.24,151.19,2.4472]
[1718178604527,8.32,151.22,151.2,2.447]
[1718178604704,0.68,151.25,151.19,2.4471]
[1718178604906,8.32,151.22,151.19,2.4471]
[1718178605420,8.32,151.22,151.19,2.4472]
[1718178605929,10.7667,151.22,151.18,2.4473]
[1718178607209,0.68,151.25,151.17,28.667]
[1718178607412,8.32,151.23,151.2,2.447]
[1718178607619,8.32,151.23,151.21,2.4469]
[1718178608211,8.32,151.23,151.2,2.4469]
[1718178609223,8.32,151.22,151.2,2.4469]
[1718178609830,8.32,151.23,151.2,2.4469]
[1718178610227,2.6163,151.25,151.21,2.4469]
[1718178610541,8.32,151.25,151.22,2.4467]
[1718178611635,2.446,151.27,151.22,2.4467]
[1718178611829,8.32,151.24,151.22,2.4467]
[1718178612033,2.446,151.27,151.22,2.4467]
[1718178612220,2.446,151.27,151.23,2.4465]
[1718178612413,2.9558,151.28,151.24,2.4464]
[1718178612614,2.9558,151.28,151.21,13.2138]
[1718178612840,8.32,151.27,151.24,2.4463]
[1718178613340,0.51,151.28,151.24,2.4463]
[1718178613341,8.32,151.26,151.24,2.4463]
[1718178613641,8.32,151.26,151.23,2.4465]
[1718178614126,8.32,151.25,151.23,2.4465]
[1718178614811,2.4458,151.28,151.23,2.4465]
[1718178615021,8.32,151.26,151.2,24.2802]
[1718178615247,8.32,151.27,151.24,2.4463]
[1718178619730,2.4455,151.3,151.25,2.4462]
[1718178619937,8.32,151.27,151.25,2.4462]
[1718178620942,0.68,151.31,151.26,2.4459]
[1718178621131,8.32,151.28,151.26,2.4459]
[1718178621436,0.68,151.31,151.26,2.4459]
[1718178621638,2.4453,151.31,151.26,2.4459]
[1718178621939,18.3168,151.32,151.27,2.4459]
[1718178622140,8.32,151.29,151.27,2.4459]
[1718178622375,8.32,151.29,151.26,2.446]
[1718178622523,18.3168,151.32,151.24,13.2126]
[1718178622862,2.4448,151.34,151.29,2.4456]
[1718178623019,8.32,151.32,151.28,2.4456]
[1718178623342,8.32,151.32,151.26,13.2121]
[1718178623514,2.4448,151.34,151.29,2.4455]
[1718178623747,2.4449,151.33,151.28,2.4457]
[1718178623947,8.32,151.33,151.29,2.4455]
[1718178624156,8.32,151.33,151.27,8.32]
[1718178624378,278.2633,151.37,151.29,2.4455]
[1718178624379,2.4449,151.34,151.29,2.4455]
[1718178624685,2.4449,151.34,151.28,2.4457]
[1718178624686,8.32,151.32,151.28,2.4457]
[1718178625891,8.32,151.32,151.29,2.4455]
[1718178626565,2.4451,151.32,151.27,2.4458]
[1718178626769,8.32,151.31,151.27,2.4458]
[1718178627164,8.32,151.31,151.28,2.4457]
[1718178628447,8.32,151.31,151.25,6.5818]
[1718178628652,8.32,151.28,151.25,9.028]
[1718178628852,2.4454,151.3,151.25,9.028]
[1718178629055,2.4453,151.31,151.26,2.446]
[1718178629286,8.32,151.28,151.26,2.446]
[1718178630458,8.32,151.28,151.27,2.4459]
[1718178630958,14.6681,151.35,151.28,2.4457]
[1718178630959,8.32,151.3,151.28,2.4457]
[1718178631379,8.32,151.29,151.27,2.4458]
[1718178633573,8.32,151.29,151.26,2.446]
[1718178634251,8.32,151.29,151.27,2.4459]
[1718178634655,8.32,151.29,151.26,2.446]
[1718178635355,2.4452,151.32,151.27,2.4459]
[1718178635567,8.32,151.29,151.28,2.4457]
[1718178636679,0.17,151.32,151.28,2.4457]
[1718178636886,8.32,151.3,151.28,2.4457]
[1718178639001,2.445,151.33,151.28,2.4457]
[1718178639162,8.32,151.31,151.29,2.4456]
[1718178639360,2.4449,151.34,151.29,2.4456]
[1718178639570,8.32,151.31,151.29,2.4456]
[1718178639765,8.32,151.31,151.3,2.4454]
[1718178640199,2.4447,151.35,151.31,2.4453]
[1718178640504,8.32,151.34,151.31,2.4453]
[1718178640986,10.7647,151.35,151.3,2.4453]
[1718178641199,8.32,151.34,151.3,2.4453]
[1718178643170,8.32,151.33,151.3,2.4453]
[1718178643476,8.32,151.34,151.31,2.4452]
[1718178643981,2.6145,151.36,151.31,2.4452]
[1718178644185,8.32,151.34,151.31,2.4452]
[1718178644480,2.6145,151.36,151.31,2.4452]
[1718178644668,8.32,151.34,151.31,2.4452]
[1718178645689,2.6145,151.36,151.31,2.4452]
[1718178645993,8.32,151.34,151.31,2.4452]
[1718178646284,2.4445,151.36,151.31,2.4452]
[1718178646590,4.8878,151.4,151.3,4.8908]
[1718178646767,2.4443,151.38,151.33,2.4448]
[1718178646973,8.32,151.36,151.34,2.4448]
[1718178647169,2.4441,151.39,151.34,2.4448]
[1718178647594,8.32,151.37,151.34,2.4448]
[1718178648295,8.32,151.37,151.33,2.4449]
[1718178648996,2.4441,151.38,151.33,2.4449]
[1718178649190,8.32,151.37,151.34,2.4448]
[1718178650171,8.32,151.37,151.33,2.4449]
[1718178651585,2.6139,151.4,151.35,2.4446]
[1718178651792,8.32,151.37,151.34,2.4447]
[1718178652502,8.32,151.37,151.35,2.4446]
[1718178653795,15.3225,151.41,151.36,2.4445]
[1718178654100,17.7662,151.41,151.36,2.4445]
[1718178654288,8.32,151.39,151.36,2.4445]
[1718178655494,8.32,151.38,151.35,2.4446]
[1718178656401,2.4439,151.4,151.35,2.4446]
[1718178656588,8.32,151.38,151.35,2.4446]
[1718178657107,8.32,151.39,151.36,2.4443]
[1718178659599,2.4437,151.41,151.36,2.4443]
[1718178659806,8.32,151.39,151.36,2.4443]
[1718178661702,9.9434,151.44,151.37,2.4443]
[1718178661902,33.28,151.44,151.38,2.4441]
[1718178662118,2.4434,151.43,151.36,4.8889]
[1718178662434,2.4435,151.42,151.35,25.4324]
[1718178662592,2.4434,151.43,151.38,2.4441]
[1718178662904,8.32,151.41,151.38,2.4441]
[1718178663312,2.4434,151.43,151.38,2.4441]
[1718178663493,8.32,151.41,151.39,2.444]
[1718178663810,8.32,151.41,151.38,2.4441]
[1718178664194,2.4434,151.43,151.39,2.444]
[1718178664509,16.1769,151.45,151.39,2.444]
[1718178664714,8.32,151.41,151.39,2.444]
[1718178665514,8.32,151.41,151.38,2.444]
[1718178666213,8.32,151.41,151.39,2.4439]
[1718178666998,2.4433,151.44,151.39,2.4439]
[1718178667209,8.32,151.42,151.4,2.4438]
[1718178667598,8.32,151.43,151.39,2.4439]
[1718178668107,8.32,151.42,151.39,2.4439]
[1718178669634,8.32,151.44,151.41,2.4436]
[1718178670204,8.32,151.44,151.4,2.4437]
[1718178670404,8.32,151.43,151.4,2.4437]
[1718178670739,2.4432,151.44,151.36,17.5023]
[1718178670740,10.7638,151.41,151.36,17.5023]
[1718178670938,8.32,151.38,151.34,6.4249]
[1718178671144,8.32,151.38,151.34,8.8696]
[1718178671426,8.32,151.39,151.36,2.4444]
[1718178672024,8.32,151.39,151.37,2.4443]
[1718178672212,8.32,151.39,151.36,2.4444]
[1718178672412,8.32,151.38,151.34,6.4249]
[1718178672604,8.32,151.36,151.33,2.4448]
[1718178673028,8.32,151.36,151.34,2.4448]
[1718178673535,0.17,151.42,151.33,7.3348]
[1718178673740,8.32,151.38,151.34,4.8896]
[1718178673923,8.32,151.38,151.35,2.4446]
[1718178674107,8.32,151.38,151.34,4.8896]
[1718178674429,8.32,151.38,151.36,2.4444]
[1718178675309,3.1236,151.42,151.37,2.4443]
[1718178675509,8.32,151.39,151.37,2.4443]
[1718178676632,3.1236,151.42,151.37,2.4443]
[1718178676633,2.4436,151.42,151.37,2.4443]
[1718178676835,8.32,151.39,151.37,2.4443]
[1718178677913,8.32,151.39,151.36,2.4444]
[1718178678338,8.32,151.39,151.37,2.4443]
[1718178679631,15.0591,151.43,151.4,2.4437]
[1718178679840,17.5025,151.43,151.38,2.4441]
[1718178680046,36.4032,151.44,151.39,2.444]
[1718178680217,8.32,151.4,151.37,2.4443]
[1718178680535,8.32,151.4,151.38,2.4441]
[1718178680729,8.32,151.4,151.36,4.889]
[1718178681041,8.32,151.4,151.38,2.444]
[1718178681544,2.4433,151.43,151.38,2.444]
[1718178681744,2.4433,151.43,151.36,4.889]
[1718178681745,8.32,151.4,151.39,2.444]
[1718178681944,2.4433,151.43,151.36,4.889]
[1718178682138,8.32,151.4,151.39,2.444]
[1718178682638,8.32,151.41,151.39,2.444]
[1718178683746,2.4432,151.44,151.39,2.444]
[1718178683934,8.32,151.41,151.39,2.444]
[1718178684149,2.4431,151.45,151.4,2.4438]
[1718178684438,2.4431,151.45,151.37,12.2214]
[1718178684439,8.32,151.43,151.41,2.4436]
[1718178684826,8.32,151.43,151.4,2.4437]
[1718178685830,2.443,151.45,151.4,2.4437]
[1718178686031,8.32,151.43,151.41,2.4436]
[1718178687139,8.32,151.44,151.41,2.4436]
[1718178688045,2.4429,151.46,151.41,2.4436]
[1718178688256,8.32,151.44,151.41,2.4436]
[1718178689549,8.32,151.44,151.42,2.4434]
[1718178690268,2.4427,151.48,151.39,8.32]
[1718178690556,8.32,151.47,151.44,2.443]
[1718178690855,2.442,151.52,151.47,2.4426]
[1718178691152,8.32,151.5,151.47,2.4426]
[1718178691648,8.32,151.49,151.46,2.4428]
[1718178691847,8.32,151.49,151.45,2.4429]
[1718178692052,2.4421,151.51,151.46,2.4428]
[1718178692346,2.4415,151.55,151.5,2.4422]
[1718178692547,8.32,151.54,151.5,2.4421]
[1718178693020,6.3809,151.58,151.51,2.4419]
[1718178693224,8.32,151.54,151.51,2.4419]
[1718178693454,8.32,151.54,151.48,13.2051]
[1718178693455,8.32,151.54,151.5,2.4421]
[1718178693731,8.32,151.53,151.5,2.4421]
[1718178694333,8.32,151.54,151.51,2.442]
[1718178695536,2.4411,151.57,151.52,2.4419]
[1718178695731,8.32,151.54,151.52,2.4419]
[1718178696031,8.32,151.54,151.51,2.442]
[1718178696437,2.4413,151.56,151.51,2.442]
[1718178696642,8.32,151.53,151.51,2.442]
[1718178697253,6.3809,151.58,151.46,4.8856]
[1718178697254,8.32,151.52,151.46,4.8856]
[1718178697547,8.32,151.51,151.49,2.4423]
[1718178697748,8.32,151.52,151.49,2.4423]
[1718178697942,8.32,151.52,151.47,2.4426]
[1718178697943,8.32,151.5,151.47,2.4426]
[1718178698355,8.32,151.5,151.48,2.4425]
[1718178698658,8.32,151.5,151.49,2.4424]
[1718178698833,8.32,151.51,151.49,2.4424]
[1718178699028,2.6115,151.55,151.5,2.4422]
[1718178699223,8.32,151.51,151.5,2.4422]
[1718178699632,2.4413,151.56,151.51,2.442]
[1718178699935,8.32,151.53,151.51,2.442]
[1718178700236,6.3809,151.58,151.49,4.8848]
[1718178700437,8.32,151.53,151.51,2.442]
[1718178702355,2.4411,151.57,151.52,2.4418]
[1718178702652,8.32,151.54,151.52,2.4418]
[1718178703157,2.4411,151.57,151.52,2.4418]
[1718178703358,8.32,151.55,151.52,2.4418]
[1718178705267,10.7615,151.55,151.5,2.4421]
[1718178705435,8.32,151.54,151.5,2.4421]
[1718178705634,2.4413,151.56,151.51,2.442]
[1718178705855,8.32,151.54,151.51,2.442]
[1718178706072,2.4413,151.56,151.51,2.442]
[1718178706239,8.32,151.54,151.51,2.442]
[1718178706634,2.4413,151.56,151.51,2.442]
[1718178706834,8.32,151.54,151.51,2.442]
[1718178707034,2.4413,151.56,151.51,2.442]
[1718178707339,8.32,151.54,151.49,4.8847]
[1718178707570,8.32,151.54,151.51,2.442]
[1718178708836,0.17,151.53,151.46,2.4427]
[1718178709056,8.32,151.5,151.47,2.4426]
[1718178709253,8.32,151.5,151.46,2.4428]
[1718178709452,8.32,151.5,151.45,16.0537]
[1718178709453,8.32,151.5,151.47,2.4427]
[1718178709974,8.32,151.5,151.46,2.4428]
[1718178710161,8.32,151.49,151.46,2.4428]
[1718178710862,8.32,151.49,151.47,2.4427]
[1718178711075,8.32,151.49,151.45,16.0537]
[1718178711279,8.32,151.49,151.48,2.4425]
[1718178714383,8.32,151.49,151.47,2.4426]
[1718178714756,8.32,151.49,151.48,2.4425]
[1718178718472,8.32,151.5,151.49,2.4424]
[1718178718657,8.32,151.51,151.47,12.2133]
[1718178718886,17.7296,151.54,151.5,2.4421]
[1718178719188,8.32,151.51,151.5,2.4421]
[1718178719385,8.32,151.52,151.51,2.442]
[1718178720465,8.32,151.52,151.5,2.4421]
[1718178720962,8.32,151.52,151.51,2.442]
[1718178721393,8.32,151.52,151.5,2.4421]
[1718178721562,2.4415,151.55,151.51,2.442]
[1718178721761,8.32,151.52,151.51,2.442]
[1718178721960,8.32,151.52,151.48,2.4424]
[1718178722184,8.32,151.51,151.5,2.4421]
[1718178722370,2.4413,151.56,151.51,2.442]
[1718178722692,2.4413,151.56,151.48,12.2126]
[1718178722693,8.32,151.53,151.52,2.4419]
[1718178723001,8.32,151.53,151.49,4.8847]
[1718178723002,8.32,151.53,151.51,2.4419]
[1718178723160,8.32,151.52,151.51,2.4419]
[1718178724497,8.32,151.52,151.48,2.4425]
[1718178724659,8.32,151.5,151.47,2.4426]
[1718178724856,8.32,151.5,151.45,20.9396]
[1718178725083,2.442,151.52,151.45,29.2596]
[1718178725084,8.32,151.51,151.45,29.2596]
[1718178725369,8.32,151.51,151.49,2.4423]
[1718178730502,2.4416,151.54,151.49,2.4423]
[1718178730704,8.32,151.52,151.5,2.4421]
[1718178731175,8.32,151.52,151.49,2.4423]
[1718178731679,2.4416,151.54,151.47,12.2134]
[1718178731871,15.1855,151.58,151.53,2.4416]
[1718178732077,8.32,151.55,151.52,2.4418]
[1718178732285,10.7614,151.55,151.51,2.442]
[1718178732476,8.32,151.55,151.51,2.442]
[1718178732667,8.32,151.55,151.52,2.4418]
[1718178735080,8.32,151.53,151.5,2.4421]
[1718178735279,8.32,151.53,151.51,2.442]
[1718178735590,8.32,151.53,151.47,26.954]
[1718178735773,8.32,151.53,151.5,2.4421]
[1718178736467,8.32,151.53,151.47,14.741]
[1718178736672,8.32,151.53,151.52,2.4419]
[1718178737170,8.32,151.54,151.52,2.4419]
[1718178738791,8.32,151.53,151.47,11.3064]
[1718178738973,8.32,151.53,151.5,2.4421]
[1718178739690,8.32,151.53,151.51,2.442]
[1718178740012,10.762,151.52,151.47,2.4426]
[1718178740193,8.32,151.49,151.47,2.4426]
[1718178740368,8.32,151.49,151.48,2.4425]
[1718178740568,8.32,151.5,151.49,2.4423]
[1718178740794,15.1886,151.53,151.49,2.4423]
[1718178740995,8.32,151.5,151.48,2.4425]
[1718178741580,8.32,151.5,151.44,9.7728]
[1718178741784,15.1886,151.53,151.44,14.6591]